[Event "105th British-ch 2018"]
[Site "Hull"]
[Date "2018.08.03"]
[Round "4"]
[White "Pritchett, Craig W"]
[Black "Sugden, John N"]
[Result "1/2-1/2"]
[ECO "E17"]
[WhiteElo "2274"]
[BlackElo "2090"]
[Annotator "ChessBase"]
[PlyCount "147"]
[EventDate "2018.07.28"]
[EventType "swiss"]
[EventCountry "GBR"]
[SourceTitle "playchess.com"]
[Source "ChessBase"]
[SourceQuality "1"]
[TimeControl "40/5400+30:1800+30"]

1. Nf3 {[%emt 0:00:00]} Nf6 {[%emt 0:01:06]} 2. c4 {[%emt 0:00:06]} e6 {[%emt 0:00:51]} 3. g3 {[%emt 0:00:23]} b6 {[%emt 0:03:12]} 4. Bg2 {[%emt 0:00:12]} Bb7 {[%emt 0:00:10]} 5. O-O {[%emt 0:00:29]} Be7 {[%emt 0:00:54]} 6. Nc3 {[%emt 0:02:35]} O-O {[%emt 0:00:52]} 7. Re1 {[%emt 0:00:35]} d5 {[%emt 0:05:09]} 8. cxd5 {[%emt 0:01:08]} exd5 {[%emt 0:04:23]} 9. d4 {[%emt 0:00:19]} Nbd7 {[%emt 0:05:38]} 10. e3 {[%emt 0:05:26]} c5 {[%emt 0:04:58]} 11. b3 {[%emt 0:11:11]} Ne4 {[%emt 0:08:36]} 12. Bb2 {[%emt 0:06:03]} Ndf6 {[%emt 0:02:56]} 13. Rc1 {[%emt 0:06:57]} cxd4 {[%emt 0:06:43]} 14. Nxd4 {[%emt 0:04:35]} Qd7 {[%emt 0:01:40]} 15. Re2 {[%emt 0:06:25]} Rac8 {[%emt 0:07:18]} 16. Rec2 {[%emt 0:02:29]} Nxc3 {[%emt 0:03:05]} 17. Bxc3 {[%emt 0:06:02]} Ne4 {[%emt 0:03:29]} 18. Bb2 {[%emt 0:02:23]} Bf6 {[%emt 0:03:50]} 19. Bf3 {[%emt 0:06:28]} Rxc2 {[%emt 0:07:19]} 20. Rxc2 {[%emt 0:00:19]} Be7 {[%emt 0:12:29]} 21. Bg4 {[%emt 0:04:09]} f5 {[%emt 0:01:34]} 22. Be2 {[%emt 0:00:53]} a6 {[%emt 0:02:16]} 23. Qf1 {[%emt 0:04:40]} b5 {[%emt 0:00:41]} 24. Qc1 {[%emt 0:06:12]} Rc8 {[%emt 0:00:36]} 25. Rxc8+ {[%emt 0:00:55]} Qxc8 {[%emt 0:00:27]} 26. Qxc8+ {[%emt 0:00:16]} Bxc8 {[%emt 0:00:05]} 27. f3 {[%emt 0:00:39]} Nc5 {[%emt 0:02:24]} 28. Kf2 {[%emt 0:04:28]} Bd7 {[%emt 0:01:20]} 29. h3 {[%emt 0:05:05]} Kf7 {[%emt 0:01:03]} 30. Ke1 {[%emt 0:03:02]} g6 {[%emt 0:01:19]} 31. Bf1 {[%emt 0:05:35]} Bd6 {[%emt 0:01:25]} 32. Kf2 {[%emt 0:00:24]} Ne6 {[%emt 0:00:28]} 33. Nxe6 {[%emt 0:00:28]} Kxe6 {[%emt 0:00:20]} 34. f4 {[%emt 0:00:31]} Bc5 {[%emt 0:00:56]} 35. Bd3 {[%emt 0:01:27]} Kf7 {[%emt 0:01:38]} 36. a3 {[%emt 0:01:17]} h5 {[%emt 0:00:42]} 37. b4 {[%emt 0:00:06]} Bb6 {[%emt 0:00:50]} 38. Be2 {[%emt 0:01:26]} Ke7 {[%emt 0:01:51]} 39. Bf3 {[%emt 0:00:40]} Be6 {[%emt 0:01:07]} 40. Be5 {[%emt 0:01:03]} Kd7 {[%emt 0:01:42]} 41. Bd1 {[%emt 0:31:51]} Ke7 {[%emt 0:03:03]} 42. Ke2 {[%emt 0:00:00]} Bd7 {[%emt 0:08:18]} 43. Kd3 {[%emt 0:00:00]} Be6 {[%emt 0:04:23]} 44. Bd4 {[%emt 0:00:00]} Bd8 {[%emt 0:07:05]} 45. a4 {[%emt 0:00:00]} Bd7 {[%emt 0:02:14]} 46. a5 {[%emt 0:00:00]} Kd6 {[%emt 0:02:23]} 47. Bf3 {[%emt 0:00:00]} Be6 {[%emt 0:00:54]} 48. Ke2 {[%emt 0:00:00]} Kd7 {[%emt 0:00:51]} 49. Kf2 {[%emt 0:00:00]} Be7 {[%emt 0:00:24]} 50. Bc3 {[%emt 0:00:00]} Ke8 {[%emt 0:00:41]} 51. Be2 {[%emt 0:00:00]} Bd7 {[%emt 0:00:42]} 52. Bd3 {[%emt 0:00:00]} Kf7 {[%emt 0:00:50]} 53. Be2 {[%emt 0:02:02]} Bc8 {[%emt 0:00:43]} 54. Ke1 {[%emt 0:00:44]} Bd7 {[%emt 0:01:05]} 55. Kd2 {[%emt 0:00:11]} Ke6 {[%emt 0:01:53]} 56. Kc2 {[%emt 0:01:44]} Kd6 {[%emt 0:00:46]} 57. Bd4 {[%emt 0:00:21]} Kc6 {[%emt 0:00:40]} 58. Kc3 {[%emt 0:00:11]} Bf8 {[%emt 0:01:11]} 59. Bf3 {[%emt 0:00:28]} Be6 {[%emt 0:00:21]} 60. Be5 {[%emt 0:00:48]} Be7 {[%emt 0:00:50]} 61. Bg2 {[%emt 0:01:04]} Bf8 {[%emt 0:00:27]} 62. Bf1 {[%emt 0:00:57]} Be7 {[%emt 0:00:33]} 63. Bd3 {[%emt 0:00:17]} Bf8 {[%emt 0:01:02]} 64. Bd4 {[%emt 0:01:18]} Be7 {[%emt 0:00:16]} 65. Be2 {[%emt 0:00:24]} Bf8 {[%emt 0:00:27]} 66. Bf3 {[%emt 0:00:08]} Be7 {[%emt 0:00:41]} 67. Kb3 {[%emt 0:00:38]} Bf8 {[%emt 0:00:12]} 68. Bc3 {[%emt 0:01:06]} Be7 {[%emt 0:00:41]} 69. Kc2 {[%emt 0:00:10]} Bf8 {[%emt 0:00:27]} 70. Kd3 {[%emt 0:00:12]} Be7 {[%emt 0:00:15]} 71. Ke2 {[%emt 0:00:47]} Kd7 {[%emt 0:00:34]} 72. Kf2 {[%emt 0:00:28]} Ke8 {[%emt 0:00:32]} 73. Be2 {[%emt 0:00:55]} Bd7 {[%emt 0:00:10]} 74. Bf3 {[%emt 0:00:54]} 1/2-1/2

[Event "105th British-ch 2018"]
[Site "Hull"]
[Date "2018.08.03"]
[Round "4"]
[White "Toma, Katarzyna"]
[Black "McDougall, William M"]
[Result "1-0"]
[ECO "B53"]
[WhiteElo "2274"]
[BlackElo "2056"]
[Annotator "ChessBase"]
[PlyCount "55"]
[EventDate "2018.07.28"]
[EventType "swiss"]
[EventCountry "GBR"]
[SourceTitle "playchess.com"]
[Source "ChessBase"]
[SourceQuality "1"]
[TimeControl "40/5400+30:1800+30"]

1. e4 {[%emt 0:00:00]} c5 {[%emt 0:00:00]} 2. Nf3 {[%emt 0:00:00]} d6 {[%emt 0:00:00]} 3. d4 {[%emt 0:00:00]} cxd4 {[%emt 0:00:00]} 4. Qxd4 {[%emt 0:00:00]} Nc6 {[%emt 0:00:48]} 5. Bb5 {[%emt 0:00:06]} Bd7 {[%emt 0:00:17]} 6. Qd3 {[%emt 0:00:14]} Nf6 {[%emt 0:03:03]} 7. c4 {[%emt 0:00:35]} g6 {[%emt 0:00:58]} 8. Nc3 {[%emt 0:00:10]} Bg7 {[%emt 0:00:35]} 9. O-O {[%emt 0:00:37]} O-O {[%emt 0:00:50]} 10. h3 {[%emt 0:01:56]} a6 {[%emt 0:03:15]} 11. Bxc6 {[%emt 0:00:49]} Bxc6 {[%emt 0:01:06]} 12. Nd4 {[%emt 0:00:12]} Qc7 {[%emt 0:04:34]} 13. Be3 {[%emt 0:03:10]} e6 {[%emt 0:05:58]} 14. Rac1 {[%emt 0:02:49]} Qe7 {[%emt 0:06:05]} 15. Rfd1 {[%emt 0:08:58]} Rfd8 {[%emt 0:05:42]} 16. b3 {[%emt 0:02:56]} d5 {[%emt 0:07:11]} 17. exd5 {[%emt 0:03:24]} exd5 {[%emt 0:00:22]} 18. Nxc6 {[%emt 0:02:00]} bxc6 {[%emt 0:00:05]} 19. Na4 {[%emt 0:05:20]} Ne4 {[%emt 0:06:23]} 20. Nb6 {[%emt 0:01:28]} dxc4 {[%emt 0:05:35]} 21. Qxc4 {[%emt 0:00:22]} Nc3 {[%emt 0:04:55]} 22. Re1 {[%emt 0:08:04]} Qf6 {[%emt 0:04:42]} 23. Nxa8 {[%emt 0:01:57]} Rxa8 {[%emt 0:00:08]} 24. Rc2 {[%emt 0:00:48]} Re8 {[%emt 0:10:33]} 25. Rec1 {[%emt 0:02:15]} Nd5 {[%emt 0:00:54]} 26. Qxc6 {[%emt 0:00:25]} Qe5 {[%emt 0:01:15]} 27. Qxe8+ {[%emt 0:01:06]} Qxe8 {[%emt 0:00:15]} 28. Rc8 {[%emt 0:00:05]} 1-0

[Event "105th British-ch 2018"]
[Site "Hull"]
[Date "2018.08.01"]
[Round "4"]
[White "Van Zyl-Rudd, Jack"]
[Black "De Coverly, Roger D"]
[Result "1-0"]
[ECO "E93"]
[WhiteElo "2265"]
[BlackElo "1920"]
[Annotator "NA"]
[PlyCount "107"]
[EventDate "2018.07.28"]
[EventType "swiss"]
[EventCountry "GBR"]
[SourceTitle "playchess.com"]
[Source "ChessBase"]
[SourceQuality "1"]
[TimeControl "40/5400+30:1800+30"]

1. d4 {[%emt 0:00:00]} Nf6 {[%emt 0:00:00]} 2. c4 {[%emt 0:00:00]} g6 {[%emt 0:00:00]} 3. Nc3 {[%emt 0:00:00]} Bg7 {[%emt 0:00:00]} 4. e4 {[%emt 0:00:00]} d6 {[%emt 0:00:01]} 5. Be2 {[%emt 0:00:00]} O-O {[%emt 0:00:08]} 6. Bg5 {[%emt 0:00:00]} Nbd7 {[%emt 0:00:32]} 7. Nf3 {[%emt 0:00:02]} e5 {[%emt 0:02:03]} 8. d5 {[%emt 0:01:12]} h6 {[%emt 0:01:05]} 9. Bh4 {[%emt 0:00:20]} g5 {[%emt 0:00:39]} 10. Bg3 {[%emt 0:00:07]} Nh5 {[%emt 0:01:03]} 11. Nd2 {[%emt 0:00:34]} Nf4 {[%emt 0:01:58]} 12. Bf1 {[%emt 0:00:31]} a5 {[%emt 0:02:55]} 13. Qc2 {[%emt 0:01:00]} Nc5 {[%emt 0:07:02]} 14. f3 {[%emt 0:01:27]} f5 {[%emt 0:02:03]} 15. Bf2 {[%emt 0:01:22]} b6 {[%emt 0:03:20]} 16. g3 {[%emt 0:01:30]} Ng6 {[%emt 0:02:03]} 17. Bxc5 {[%emt 0:00:30]} bxc5 {[%emt 0:00:22]} 18. exf5 {[%emt 0:00:07]} Bxf5 {[%emt 0:00:54]} 19. Bd3 {[%emt 0:00:52]} Ne7 {[%emt 0:01:26]} 20. Nde4 {[%emt 0:00:31]} g4 {[%emt 0:01:56]} 21. O-O {[%emt 0:00:42]} Qd7 {[%emt 0:04:51]} 22. fxg4 {[%emt 0:03:08]} Bxg4 {[%emt 0:00:29]} 23. Rf2 {[%emt 0:00:11]} Bh3 {[%emt 0:12:18]} 24. Rxf8+ {[%emt 0:01:30]} Rxf8 {[%emt 0:00:11]} 25. Bf1 {[%emt 0:00:28]} Bxf1 {[%emt 0:02:08]} 26. Rxf1 {[%emt 0:00:08]} Rxf1+ {[%emt 0:03:17]} 27. Kxf1 {[%emt 0:00:19]} Nf5 {[%emt 0:06:08]} 28. Kg1 {[%emt 0:01:58]} Nd4 {[%emt 0:01:29]} 29. Qf2 {[%emt 0:00:09]} Qf7 {[%emt 0:12:01]} 30. Qxf7+ {[%emt 0:00:52]} Kxf7 {[%emt 0:00:10]} 31. Kf2 {[%emt 0:00:03]} Bf8 {[%emt 0:01:11]} 32. g4 {[%emt 0:01:02]} Be7 {[%emt 0:01:52]} 33. Kg3 {[%emt 0:02:12]} Bg5 {[%emt 0:04:23]} 34. h4 {[%emt 0:02:41]} Bf4+ {[%emt 0:05:40]} 35. Kf2 {[%emt 0:00:13]} Ke7 {[%emt 0:01:51]} 36. b3 {[%emt 0:01:53]} Bc1 {[%emt 0:02:51]} 37. Ne2 {[%emt 0:01:34]} Nxe2 {[%emt 0:01:42]} 38. Kxe2 {[%emt 0:00:35]} Bb2 {[%emt 0:02:47]} 39. Kf3 {[%emt 0:01:36]} Bd4 {[%emt 0:05:35]} 40. g5 {[%emt 0:00:54]} hxg5 {[%emt 0:00:46]} 41. Nxg5 {[%emt 0:30:10]} Kf6 {[%emt 0:31:36]} 42. Ne6 {[%emt 0:00:17]} Kf5 {[%emt 0:03:10]} 43. Nxc7 {[%emt 0:00:08]} e4+ {[%emt 0:00:37]} 44. Ke2 {[%emt 0:00:12]} Kg4 {[%emt 0:01:16]} 45. Nb5 {[%emt 0:00:19]} Be5 {[%emt 0:01:15]} 46. Ke3 {[%emt 0:00:09]} Kxh4 {[%emt 0:01:31]} 47. Kxe4 {[%emt 0:00:07]} Kg4 {[%emt 0:00:36]} 48. Na7 {[%emt 0:00:16]} Bg3 {[%emt 0:00:00]} 49. Nc6 {[%emt 0:00:00]} Be1 {[%emt 0:00:00]} 50. Nd8 {[%emt 0:00:00]} Bg3 {[%emt 0:00:00]} 51. Nb7 {[%emt 0:00:00]} Kg5 {[%emt 0:00:00]} 52. Nxa5 {[%emt 0:00:00]} Kf6 {[%emt 0:00:00]} 53. Nc6 {[%emt 0:00:00]} Kf7 {[%emt 0:00:00]} 54. Kf5 {[%emt 0:00:00]} 1-0

[Event "105th British-ch 2018"]
[Site "Hull"]
[Date "2018.08.03"]
[Round "4"]
[White "Britton, Richard L"]
[Black "Miller, Dominic"]
[Result "0-1"]
[ECO "A04"]
[WhiteElo "2249"]
[BlackElo "2017"]
[Annotator "ChessBase"]
[PlyCount "88"]
[EventDate "2018.07.28"]
[EventType "swiss"]
[EventCountry "GBR"]
[SourceTitle "playchess.com"]
[Source "ChessBase"]
[SourceQuality "1"]
[TimeControl "40/5400+30:1800+30"]

1. e4 {[%emt 0:00:00]} e6 {[%emt 0:00:00]} 2. d3 {[%emt 0:00:11]} c5 {[%emt 0:00:00]} 3. Nf3 {[%emt 0:00:05]} Nc6 {[%emt 0:00:00]} 4. g3 {[%emt 0:00:04]} g6 {[%emt 0:00:00]} 5. Bg2 {[%emt 0:00:04]} Bg7 {[%emt 0:00:08]} 6. O-O {[%emt 0:00:07]} Nge7 {[%emt 0:00:08]} 7. Re1 {[%emt 0:00:06]} d6 {[%emt 0:01:05]} 8. c3 {[%emt 0:00:18]} O-O {[%emt 0:05:37]} 9. d4 {[%emt 0:00:36]} cxd4 {[%emt 0:00:34]} 10. cxd4 {[%emt 0:00:05]} d5 {[%emt 0:02:29]} 11. e5 {[%emt 0:00:27]} h6 {[%emt 0:00:46]} 12. h4 {[%emt 0:09:25]} f6 {[%emt 0:01:08]} 13. Bf4 {[%emt 0:09:43]} fxe5 {[%emt 0:07:53]} 14. dxe5 {[%emt 0:00:22]} Qb6 {[%emt 0:00:24]} 15. Qd2 {[%emt 0:05:09]} Nf5 {[%emt 0:00:26]} 16. Nc3 {[%emt 0:00:47]} Ncd4 {[%emt 0:11:03]} 17. Nh2 {[%emt 0:28:02]} Kh7 {[%emt 0:15:50]} 18. Rad1 {[%emt 0:00:25]} Nc6 {[%emt 0:01:33]} 19. Nf3 {[%emt 0:04:10]} Bd7 {[%emt 0:00:52]} 20. Bf1 {[%emt 0:07:43]} Nb4 {[%emt 0:01:26]} 21. b3 {[%emt 0:00:35]} Nxg3 {[%emt 0:01:29]} 22. Bxg3 {[%emt 0:03:58]} Rxf3 {[%emt 0:00:08]} 23. Kg2 {[%emt 0:00:06]} Raf8 {[%emt 0:01:20]} 24. Bd3 {[%emt 0:03:56]} Nc6 {[%emt 0:19:36]} 25. h5 {[%emt 0:00:47]} Be8 {[%emt 0:01:13]} 26. Na4 {[%emt 0:05:01]} Qd8 {[%emt 0:01:23]} 27. Be2 {[%emt 0:06:23]} R3f5 {[%emt 0:00:48]} 28. Bg4 {[%emt 0:01:23]} gxh5 {[%emt 0:01:47]} 29. Bxf5+ {[%emt 0:00:33]} Rxf5 {[%emt 0:00:03]} 30. f4 {[%emt 0:00:16]} h4 {[%emt 0:00:30]} 31. Bf2 {[%emt 0:01:14]} Bh5 {[%emt 0:01:06]} 32. Rc1 {[%emt 0:00:55]} d4 {[%emt 0:05:11]} 33. Kh2 {[%emt 0:02:40]} Qf8 {[%emt 0:02:32]} 34. Bxh4 {[%emt 0:00:25]} Rxf4 {[%emt 0:00:06]} 35. Bg3 {[%emt 0:00:05]} Rf3 {[%emt 0:01:28]} 36. Rc5 {[%emt 0:09:42]} Qf5 {[%emt 0:05:34]} 37. Qg2 {[%emt 0:00:07]} Bg6 {[%emt 0:04:24]} 38. Kg1 {[%emt 0:00:32]} d3 {[%emt 0:01:24]} 39. Rf1 {[%emt 0:01:55]} Nd4 {[%emt 0:01:26]} 40. Nc3 {[%emt 0:00:40]} Bh5 {[%emt 0:06:13]} 41. Rc7 {[%emt 0:08:56]} Bg4 {[%emt 0:03:14]} 42. Bf2 {[%emt 0:04:35]} Qxe5 {[%emt 0:11:49]} 43. Qxg4 {[%emt 0:00:23]} Qxc7 {[%emt 0:00:03]} 44. Bxd4 {[%emt 0:00:13]} Rg3+ {[%emt 0:00:20]} 0-1

[Event "105th British-ch 2018"]
[Site "Hull"]
[Date "2018.08.03"]
[Round "4"]
[White "Kalaiyalahan, Akshaya"]
[Black "Murphy, Conor E"]
[Result "1/2-1/2"]
[ECO "A07"]
[WhiteElo "2138"]
[BlackElo "2336"]
[Annotator "ChessBase"]
[PlyCount "113"]
[EventDate "2018.07.28"]
[EventType "swiss"]
[EventCountry "GBR"]
[SourceTitle "playchess.com"]
[Source "ChessBase"]
[SourceQuality "1"]
[TimeControl "40/5400+30:1800+30"]

1. Nf3 {[%emt 0:00:00]} d5 {[%emt 0:00:45]} 2. g3 {[%emt 0:00:00]} Bg4 {[%emt 0:00:19]} 3. Ne5 {[%emt 0:01:37]} Bf5 {[%emt 0:03:15]} 4. d3 {[%emt 0:00:42]} Nd7 {[%emt 0:02:31]} 5. Bf4 {[%emt 0:11:10]} g5 {[%emt 0:07:38]} 6. Nxd7 {[%emt 0:01:23]} gxf4 {[%emt 0:10:11]} 7. Nxf8 {[%emt 0:01:16]} Qd6 {[%emt 0:07:15]} 8. Qd2 {[%emt 0:03:06]} e5 {[%emt 0:06:59]} 9. gxf4 {[%emt 0:06:07]} exf4 {[%emt 0:09:26]} 10. Qc3 {[%emt 0:08:12]} Nf6 {[%emt 0:11:34]} 11. Na3 {[%emt 0:05:11]} c6 {[%emt 0:01:42]} 12. O-O-O {[%emt 0:15:12]} Rxf8 {[%emt 0:03:35]} 13. e4 {[%emt 0:01:47]} fxe3 {[%emt 0:03:59]} 14. fxe3 {[%emt 0:00:11]} O-O-O {[%emt 0:01:12]} 15. Nb5 {[%emt 0:01:20]} Qe7 {[%emt 0:00:39]} 16. Kb1 {[%emt 0:05:19]} Ng4 {[%emt 0:05:57]} 17. Nd4 {[%emt 0:05:38]} Bd7 {[%emt 0:01:39]} 18. Re1 {[%emt 0:02:50]} Nxe3 {[%emt 0:02:36]} 19. Nf3 {[%emt 0:14:52]} Rde8 {[%emt 0:01:04]} 20. d4 {[%emt 0:02:15]} f5 {[%emt 0:01:02]} 21. Bd3 {[%emt 0:04:08]} f4 {[%emt 0:00:41]} 22. Ne5 {[%emt 0:02:05]} Rg8 {[%emt 0:01:06]} 23. Re2 {[%emt 0:00:58]} Ref8 {[%emt 0:01:27]} 24. Qa5 {[%emt 0:02:19]} Kb8 {[%emt 0:01:04]} 25. c4 {[%emt 0:00:18]} dxc4 {[%emt 0:01:11]} 26. Nxc4 {[%emt 0:00:18]} Bg4 {[%emt 0:01:29]} 27. Ree1 {[%emt 0:01:26]} Bf3 {[%emt 0:01:37]} 28. Rhf1 {[%emt 0:00:24]} Bd5 {[%emt 0:02:40]} 29. Nxe3 {[%emt 0:02:09]} fxe3 {[%emt 0:00:12]} 30. Rxf8+ {[%emt 0:00:12]} Rxf8 {[%emt 0:01:07]} 31. Qc5 {[%emt 0:00:18]} Re8 {[%emt 0:01:21]} 32. Qxe7 {[%emt 0:00:31]} Rxe7 {[%emt 0:00:03]} 33. b3 {[%emt 0:00:19]} Kc7 {[%emt 0:01:47]} 34. Kc2 {[%emt 0:00:23]} Kd6 {[%emt 0:00:27]} 35. Bc4 {[%emt 0:01:40]} b5 {[%emt 0:02:37]} 36. Bd3 {[%emt 0:00:21]} b4 {[%emt 0:01:10]} 37. Bc4 {[%emt 0:01:12]} a5 {[%emt 0:00:20]} 38. Kd3 {[%emt 0:00:25]} Bxc4+ {[%emt 0:01:42]} 39. bxc4 {[%emt 0:00:04]} a4 {[%emt 0:00:05]} 40. Re2 {[%emt 0:00:31]} Re8 {[%emt 0:00:20]} 41. h3 {[%emt 0:05:43]} Re6 {[%emt 0:02:47]} 42. h4 {[%emt 0:05:55]} h5 {[%emt 0:01:16]} 43. c5+ {[%emt 0:02:12]} Kd7 {[%emt 0:04:05]} 44. Kc4 {[%emt 0:00:29]} Re4 {[%emt 0:00:15]} 45. Kxb4 {[%emt 0:00:37]} Rxd4+ {[%emt 0:00:11]} 46. Kc3 {[%emt 0:02:58]} Re4 {[%emt 0:06:09]} 47. Kd3 {[%emt 0:00:43]} Rxh4 {[%emt 0:04:43]} 48. Rxe3 {[%emt 0:00:06]} Rh2 {[%emt 0:00:15]} 49. a3 {[%emt 0:03:07]} Rb2 {[%emt 0:01:06]} 50. Kc4 {[%emt 0:01:41]} Rb3 {[%emt 0:06:52]} 51. Re4 {[%emt 0:00:10]} Rg3 {[%emt 0:00:08]} 52. Re5 {[%emt 0:02:23]} h4 {[%emt 0:00:35]} 53. Kb4 {[%emt 0:02:38]} Rg4+ {[%emt 0:10:01]} 54. Ka5 {[%emt 0:03:21]} Rd4 {[%emt 0:01:18]} 55. Rh5 {[%emt 0:00:43]} Rd5 {[%emt 0:01:05]} 56. Rxh4 {[%emt 0:00:16]} Rxc5+ {[%emt 0:00:03]} 57. Kxa4 {[%emt 0:00:08]} 1/2-1/2

[Event "105th British-ch 2018"]
[Site "Hull"]
[Date "2018.08.03"]
[Round "4"]
[White "Longson, Sarah N"]
[Black "Zapolskis, Antanas"]
[Result "0-1"]
[ECO "B33"]
[WhiteElo "2123"]
[BlackElo "2283"]
[Annotator "ChessBase"]
[PlyCount "80"]
[EventDate "2018.07.28"]
[EventType "swiss"]
[EventCountry "GBR"]
[SourceTitle "playchess.com"]
[Source "ChessBase"]
[SourceQuality "1"]
[TimeControl "40/5400+30:1800+30"]

1. e4 {[%emt 0:00:00]} c5 {[%emt 0:00:00]} 2. Nf3 {[%emt 0:00:00]} Nc6 {[%emt 0:00:00]} 3. d4 {[%emt 0:00:00]} cxd4 {[%emt 0:00:00]} 4. Nxd4 {[%emt 0:00:00]} Nf6 {[%emt 0:00:09]} 5. Nc3 {[%emt 0:00:07]} e5 {[%emt 0:00:07]} 6. Ndb5 {[%emt 0:00:12]} d6 {[%emt 0:00:08]} 7. Bg5 {[%emt 0:00:18]} a6 {[%emt 0:00:07]} 8. Na3 {[%emt 0:00:05]} b5 {[%emt 0:00:13]} 9. Bxf6 {[%emt 0:00:21]} gxf6 {[%emt 0:00:18]} 10. Nd5 {[%emt 0:00:05]} Bg7 {[%emt 0:00:11]} 11. Bd3 {[%emt 0:01:08]} Ne7 {[%emt 0:00:43]} 12. Nxe7 {[%emt 0:00:19]} Qxe7 {[%emt 0:00:07]} 13. O-O {[%emt 0:00:09]} O-O {[%emt 0:00:46]} 14. c4 {[%emt 0:00:43]} f5 {[%emt 0:01:33]} 15. Qh5 {[%emt 0:00:20]} f4 {[%emt 0:25:00]} 16. cxb5 {[%emt 0:05:49]} axb5 {[%emt 0:15:59]} 17. Nxb5 {[%emt 0:02:14]} Rb8 {[%emt 0:05:48]} 18. Rfe1 {[%emt 0:27:30]} Kh8 {[%emt 0:01:49]} 19. Rac1 {[%emt 0:17:21]} Be6 {[%emt 0:07:35]} 20. b3 {[%emt 0:03:56]} Rg8 {[%emt 0:00:44]} 21. Nc7 {[%emt 0:05:46]} Bf6 {[%emt 0:12:29]} 22. Nxe6 {[%emt 0:02:07]} fxe6 {[%emt 0:00:07]} 23. Rc2 {[%emt 0:04:33]} Rg7 {[%emt 0:02:40]} 24. Rec1 {[%emt 0:03:43]} Rbg8 {[%emt 0:01:12]} 25. Bf1 {[%emt 0:00:43]} Qb7 {[%emt 0:01:13]} 26. Rc6 {[%emt 0:02:21]} Bd8 {[%emt 0:03:55]} 27. Qf3 {[%emt 0:02:07]} Bc7 {[%emt 0:00:29]} 28. Qc3 {[%emt 0:02:35]} Bb6 {[%emt 0:01:01]} 29. Qd3 {[%emt 0:06:51]} Qa7 {[%emt 0:03:14]} 30. R1c2 {[%emt 0:02:14]} Bc5 {[%emt 0:02:09]} 31. Kh1 {[%emt 0:06:50]} Bxf2 {[%emt 0:01:19]} 32. Rxd6 {[%emt 0:00:44]} Bd4 {[%emt 0:00:46]} 33. Rdc6 {[%emt 0:03:03]} Qd7 {[%emt 0:04:01]} 34. Qf3 {[%emt 0:00:58]} Qd8 {[%emt 0:03:34]} 35. Qh3 {[%emt 0:01:13]} Ba7 {[%emt 0:04:03]} 36. R6c4 {[%emt 0:00:49]} Qd1 {[%emt 0:01:17]} 37. Rc1 {[%emt 0:00:45]} Rxg2 {[%emt 0:00:41]} 38. Qxg2 {[%emt 0:00:01]} Rxg2 {[%emt 0:00:06]} 39. Kxg2 {[%emt 0:00:03]} Qg4+ {[%emt 0:00:09]} 40. Kh1 {[%emt 0:00:07]} Qg1# {[%emt 0:00:05]} 0-1

[Event "105th British-ch 2018"]
[Site "Hull"]
[Date "2018.08.03"]
[Round "4"]
[White "Payne, Matthew J"]
[Black "Fitzsimons, David"]
[Result "1/2-1/2"]
[ECO "B07"]
[WhiteElo "2113"]
[BlackElo "2328"]
[Annotator "ChessBase"]
[PlyCount "107"]
[EventDate "2018.07.28"]
[EventType "swiss"]
[EventCountry "GBR"]
[SourceTitle "playchess.com"]
[Source "ChessBase"]
[SourceQuality "1"]
[TimeControl "40/5400+30:1800+30"]

1. e4 {[%emt 0:00:00]} d6 {[%emt 0:00:00]} 2. Nc3 {[%emt 0:00:21]} Nf6 {[%emt 0:00:07]} 3. d4 {[%emt 0:00:50]} g6 {[%emt 0:00:07]} 4. Be2 {[%emt 0:00:50]} Bg7 {[%emt 0:00:07]} 5. Be3 {[%emt 0:00:10]} c6 {[%emt 0:03:26]} 6. f4 {[%emt 0:01:57]} Qa5 {[%emt 0:00:49]} 7. Qd2 {[%emt 0:10:26]} b5 {[%emt 0:06:29]} 8. e5 {[%emt 0:05:12]} b4 {[%emt 0:00:15]} 9. exf6 {[%emt 0:01:51]} bxc3 {[%emt 0:00:08]} 10. fxg7 {[%emt 0:00:45]} cxd2+ {[%emt 0:00:26]} 11. Bxd2 {[%emt 0:00:04]} Qxd2+ {[%emt 0:00:29]} 12. Kxd2 {[%emt 0:00:04]} Rg8 {[%emt 0:00:08]} 13. Bf3 {[%emt 0:04:27]} Be6 {[%emt 0:22:37]} 14. b3 {[%emt 0:10:35]} Kd7 {[%emt 0:05:13]} 15. c4 {[%emt 0:04:47]} d5 {[%emt 0:00:27]} 16. cxd5 {[%emt 0:04:42]} cxd5 {[%emt 0:00:26]} 17. Rc1 {[%emt 0:01:55]} Nc6 {[%emt 0:01:23]} 18. Ne2 {[%emt 0:02:00]} Kd6 {[%emt 0:03:34]} 19. Ke3 {[%emt 0:05:16]} Bd7 {[%emt 0:02:16]} 20. Bxd5 {[%emt 0:07:25]} Kxd5 {[%emt 0:10:14]} 21. Nc3+ {[%emt 0:00:07]} Ke6 {[%emt 0:00:31]} 22. d5+ {[%emt 0:00:07]} Kf5 {[%emt 0:00:17]} 23. dxc6 {[%emt 0:01:00]} Bxc6 {[%emt 0:00:02]} 24. Ne4 {[%emt 0:00:50]} Bxe4 {[%emt 0:03:29]} 25. Rc5+ {[%emt 0:00:35]} Kf6 {[%emt 0:00:06]} 26. Kxe4 {[%emt 0:00:05]} Kxg7 {[%emt 0:05:23]} 27. Rc7 {[%emt 0:04:13]} Rgd8 {[%emt 0:00:26]} 28. Ke3 {[%emt 0:01:28]} Kf6 {[%emt 0:02:39]} 29. Rhc1 {[%emt 0:01:14]} Rd6 {[%emt 0:00:10]} 30. R1c4 {[%emt 0:02:02]} Ra6 {[%emt 0:07:20]} 31. R4c6+ {[%emt 0:02:07]} Rxc6 {[%emt 0:00:07]} 32. Rxc6+ {[%emt 0:00:02]} Kf5 {[%emt 0:00:36]} 33. h3 {[%emt 0:05:10]} h5 {[%emt 0:00:05]} 34. g3 {[%emt 0:00:08]} e5 {[%emt 0:02:39]} 35. Kf3 {[%emt 0:04:57]} exf4 {[%emt 0:00:50]} 36. Rc5+ {[%emt 0:00:08]} Ke6 {[%emt 0:00:43]} 37. Kxf4 {[%emt 0:00:06]} a5 {[%emt 0:10:37]} 38. Rc4 {[%emt 0:03:18]} Rb8 {[%emt 0:01:29]} 39. Kg5 {[%emt 0:06:38]} Rb5+ {[%emt 0:02:36]} 40. Kh6 {[%emt 0:00:15]} Rf5 {[%emt 0:02:20]} 41. Re4+ {[%emt 0:38:37]} Kf6 {[%emt 0:33:48]} 42. a3 {[%emt 0:02:17]} Rf3 {[%emt 0:03:00]} 43. Rf4+ {[%emt 0:00:00]} Rxf4 {[%emt 0:00:00]} 44. gxf4 {[%emt 0:00:00]} Kf5 {[%emt 0:00:00]} 45. Kg7 {[%emt 0:00:00]} Kxf4 {[%emt 0:00:00]} 46. Kf6 {[%emt 0:00:00]} h4 {[%emt 0:00:00]} 47. b4 {[%emt 0:00:00]} axb4 {[%emt 0:00:00]} 48. axb4 {[%emt 0:00:00]} Ke4 {[%emt 0:00:00]} 49. Kg5 {[%emt 0:00:00]} f5 {[%emt 0:00:00]} 50. b5 {[%emt 0:00:00]} Kd5 {[%emt 0:00:00]} 51. Kxh4 {[%emt 0:00:00]} f4 {[%emt 0:00:00]} 52. b6 {[%emt 0:00:00]} Kc6 {[%emt 0:00:00]} 53. Kg4 {[%emt 0:00:00]} g5 {[%emt 0:00:00]} 54. h4 {[%emt 0:00:00]} 1/2-1/2